[Event "*** Titled Tuesday Blitz"]
[Site "Chess.com"]
[Date "2020.05.19"]
[Round "3"]
[White "enriquetejedor"]
[Black "yuki_chess123"]
[Result "1-0"]
[WhiteElo "2470"]
[BlackElo "2143"]
[TimeControl "180+1"]
[EndTime "12:29:47 PDT"]
[Termination "enriquetejedor won by checkmate"]

1. e4 {[%clk 0:03:00.9]} 1... g6 {[%clk 0:03:00]} 2. Nc3 {[%clk 0:03:00.1]} 2...
Bg7 {[%clk 0:03:00.3]} 3. d4 {[%clk 0:03:00.6]} 3... c6 {[%clk 0:03:00.6]} 4.
Nf3 {[%clk 0:02:56.4]} 4... d5 {[%clk 0:03:00.5]} 5. h3 {[%clk 0:02:56.3]} 5...
f6 {[%clk 0:02:47.7]} 6. Bd3 {[%clk 0:02:36]} 6... Nh6 {[%clk 0:02:46.9]} 7.
Bxh6 {[%clk 0:02:36]} 7... Bxh6 {[%clk 0:02:46.7]} 8. O-O {[%clk 0:02:36.6]}
8... O-O {[%clk 0:02:45.4]} 9. Ne2 {[%clk 0:02:36]} 9... Be6 {[%clk 0:02:26.2]}
10. Re1 {[%clk 0:02:18.4]} 10... Nd7 {[%clk 0:02:22.1]} 11. exd5 {[%clk
0:02:04.2]} 11... Bxd5 {[%clk 0:02:08.9]} 12. Nc3 {[%clk 0:01:43.3]} 12... e5
{[%clk 0:02:09]} 13. Nxd5 {[%clk 0:01:39.5]} 13... cxd5 {[%clk 0:02:09.9]} 14.
dxe5 {[%clk 0:01:37.3]} 14... fxe5 {[%clk 0:02:08.6]} 15. Nxe5 {[%clk
0:01:33.9]} 15... Nxe5 {[%clk 0:02:08.8]} 16. Rxe5 {[%clk 0:01:34.8]} 16... Bg7
{[%clk 0:02:09.2]} 17. Re2 {[%clk 0:01:26.7]} 17... Bxb2 {[%clk 0:02:09.1]} 18.
Rb1 {[%clk 0:01:26.8]} 18... Qf6 {[%clk 0:02:09.5]} 19. c4 {[%clk 0:01:20.2]}
19... Bd4 {[%clk 0:02:05.8]} 20. Rxb7 {[%clk 0:01:14.9]} 20... Bxf2+ {[%clk
0:02:04]} 21. Kh1 {[%clk 0:01:15.4]} 21... d4 {[%clk 0:01:55.8]} 22. Ree7 {[%clk
0:01:05.1]} 22... Rae8 {[%clk 0:01:41.2]} 23. Qe2 {[%clk 0:00:27.3]} 23... Rxe7
{[%clk 0:01:24.9]} 24. Rxe7 {[%clk 0:00:28.2]} 24... Be3 {[%clk 0:01:22.1]} 25.
Rxa7 {[%clk 0:00:26.4]} 25... Qb6 {[%clk 0:01:15.9]} 26. Re7 {[%clk 0:00:13.2]}
26... Qf6 {[%clk 0:01:03.2]} 27. Re4 {[%clk 0:00:08.8]} 27... Qg5 {[%clk
0:00:34.5]} 28. Rg4 {[%clk 0:00:05.4]} 28... Qe5 {[%clk 0:00:30.3]} 29. Qe1
{[%clk 0:00:03.6]} 29... Qf6 {[%clk 0:00:22.6]} 30. a4 {[%clk 0:00:03.3]} 30...
Kg7 {[%clk 0:00:18.4]} 31. a5 {[%clk 0:00:03.4]} 31... Rf7 {[%clk 0:00:18.9]}
32. c5 {[%clk 0:00:03]} 32... Re7 {[%clk 0:00:19.6]} 33. a6 {[%clk 0:00:02.7]}
33... Bg5 {[%clk 0:00:19.3]} 34. Re4 {[%clk 0:00:02.8]} 34... Rf7 {[%clk
0:00:19.2]} 35. Re6 {[%clk 0:00:02.5]} 35... Qf4 {[%clk 0:00:19.4]} 36. Re4
{[%clk 0:00:02.5]} 36... Qc7 {[%clk 0:00:18.2]} 37. Rxd4 {[%clk 0:00:02.1]}
37... Qxc5 {[%clk 0:00:17.6]} 38. Re4 {[%clk 0:00:02.5]} 38... Qa3 {[%clk
0:00:12.5]} 39. Be2 {[%clk 0:00:02.7]} 39... Qb2 {[%clk 0:00:09.3]} 40. Rc4
{[%clk 0:00:02.5]} 40... Bd2 {[%clk 0:00:08.2]} 41. Qd1 {[%clk 0:00:02.6]} 41...
Be3 {[%clk 0:00:05.2]} 42. Rc2 {[%clk 0:00:02.3]} 42... Qe5 {[%clk 0:00:04.9]}
43. Bf3 {[%clk 0:00:02.4]} 43... Qg3 {[%clk 0:00:04.6]} 44. Qa1+ {[%clk
0:00:02.4]} 44... Kh6 {[%clk 0:00:04.2]} 45. Rc4 {[%clk 0:00:02.5]} 45... Bf4
{[%clk 0:00:03.9]} 46. Rxf4 {[%clk 0:00:03]} 46... Qxf4 {[%clk 0:00:03.2]} 47.
a7 {[%clk 0:00:03.3]} 47... Rxa7 {[%clk 0:00:02.7]} 48. Qxa7 {[%clk 0:00:04.2]}
48... Qc1+ {[%clk 0:00:03.1]} 49. Qg1 {[%clk 0:00:04.7]} 49... Qf4 {[%clk
0:00:03.3]} 50. Qh2 {[%clk 0:00:04.8]} 50... Qe3 {[%clk 0:00:03.2]} 51. Qg3
{[%clk 0:00:04.5]} 51... Qc1+ {[%clk 0:00:03.1]} 52. Kh2 {[%clk 0:00:04.9]}
52... g5 {[%clk 0:00:03.7]} 53. Qd6+ {[%clk 0:00:04.8]} 53... Kg7 {[%clk
0:00:04.1]} 54. Qe7+ {[%clk 0:00:04.9]} 54... Kg6 {[%clk 0:00:04.4]} 55. Be4+
{[%clk 0:00:05.1]} 55... Kh5 {[%clk 0:00:03.8]} 56. Qxh7# {[%clk 0:00:05.4]} 1-0

[Event "*** Titled Tuesday Blitz"]
[Site "Chess.com"]
[Date "2020.05.19"]
[Round "3"]
[White "mfwagnerpeixoto"]
[Black "guillembaches"]
[Result "1-0"]
[WhiteElo "2232"]
[BlackElo "2406"]
[TimeControl "180+1"]
[EndTime "12:29:47 PDT"]
[Termination "mfwagnerpeixoto won on time"]

1. e4 {[%clk 0:03:00.9]} 1... c5 {[%clk 0:02:59.5]} 2. Nf3 {[%clk 0:02:59.7]}
2... d6 {[%clk 0:03:00.1]} 3. d4 {[%clk 0:03:00.2]} 3... cxd4 {[%clk 0:03:01]}
4. Nxd4 {[%clk 0:03:00.5]} 4... Nf6 {[%clk 0:03:01.5]} 5. Nc3 {[%clk 0:03:01]}
5... Nc6 {[%clk 0:03:02.1]} 6. Bg5 {[%clk 0:02:59.3]} 6... e6 {[%clk 0:03:01.9]}
7. Qd2 {[%clk 0:02:57.9]} 7... h6 {[%clk 0:03:02.3]} 8. Be3 {[%clk 0:02:52.4]}
8... Ng4 {[%clk 0:03:01.8]} 9. Bb5 {[%clk 0:02:43.8]} 9... Bd7 {[%clk
0:02:56.6]} 10. O-O {[%clk 0:02:37.8]} 10... Nxe3 {[%clk 0:02:45.1]} 11. fxe3
{[%clk 0:02:38.7]} 11... Ne5 {[%clk 0:02:41.9]} 12. Be2 {[%clk 0:02:30.7]} 12...
Be7 {[%clk 0:02:33.2]} 13. Nf3 {[%clk 0:02:24]} 13... O-O {[%clk 0:02:20.1]} 14.
Rad1 {[%clk 0:02:12.5]} 14... Bc6 {[%clk 0:02:13.3]} 15. Nd4 {[%clk 0:01:45.8]}
15... Qb6 {[%clk 0:02:05.5]} 16. Rb1 {[%clk 0:01:31.5]} 16... Rad8 {[%clk
0:01:59.8]} 17. a4 {[%clk 0:01:22.7]} 17... Bg5 {[%clk 0:01:49]} 18. Kh1 {[%clk
0:01:16.8]} 18... Qb4 {[%clk 0:01:33]} 19. Rfd1 {[%clk 0:00:52.5]} 19... a6
{[%clk 0:01:17.4]} 20. b3 {[%clk 0:00:35.4]} 20... Rc8 {[%clk 0:01:10.3]} 21.
Nf3 {[%clk 0:00:23.3]} 21... Nxf3 {[%clk 0:00:55]} 22. gxf3 {[%clk 0:00:24.2]}
22... Bf6 {[%clk 0:00:52.6]} 23. Nd5 {[%clk 0:00:18]} 23... Qxd2 {[%clk
0:00:52.5]} 24. Nxf6+ {[%clk 0:00:17.7]} 24... gxf6 {[%clk 0:00:53.4]} 25. Rxd2
{[%clk 0:00:18.1]} 25... d5 {[%clk 0:00:49.1]} 26. exd5 {[%clk 0:00:17.2]} 26...
Bxd5 {[%clk 0:00:48.4]} 27. e4 {[%clk 0:00:16.8]} 27... Bc6 {[%clk 0:00:47.7]}
28. Rbd1 {[%clk 0:00:16.6]} 28... Rfe8 {[%clk 0:00:37.2]} 29. c4 {[%clk
0:00:15.4]} 29... Kf8 {[%clk 0:00:37.1]} 30. Kg1 {[%clk 0:00:15.5]} 30... Ke7
{[%clk 0:00:37.2]} 31. Kf2 {[%clk 0:00:15.7]} 31... Rg8 {[%clk 0:00:37.2]} 32.
Rg1 {[%clk 0:00:14.6]} 32... h5 {[%clk 0:00:35.7]} 33. Rxg8 {[%clk 0:00:13.6]}
33... Rxg8 {[%clk 0:00:34.9]} 34. Rd1 {[%clk 0:00:12.8]} 34... h4 {[%clk
0:00:29.3]} 35. Rg1 {[%clk 0:00:09.9]} 35... Rd8 {[%clk 0:00:17.9]} 36. Rg4
{[%clk 0:00:08.4]} 36... Rd2 {[%clk 0:00:17.5]} 37. Ke3 {[%clk 0:00:08.2]} 37...
Rb2 {[%clk 0:00:16.8]} 38. Rxh4 {[%clk 0:00:08.3]} 38... Rxb3+ {[%clk
0:00:16.9]} 39. Kf2 {[%clk 0:00:07.5]} 39... Bxa4 {[%clk 0:00:16.6]} 40. e5
{[%clk 0:00:06.7]} 40... fxe5 {[%clk 0:00:14.6]} 41. c5 {[%clk 0:00:07.1]} 41...
Bb5 {[%clk 0:00:11.7]} 42. Bxb5 {[%clk 0:00:06.4]} 42... Rxb5 {[%clk 0:00:12]}
43. Rc4 {[%clk 0:00:06]} 43... a5 {[%clk 0:00:11.6]} 44. c6 {[%clk 0:00:05.9]}
44... bxc6 {[%clk 0:00:10.9]} 45. Rxc6 {[%clk 0:00:06.8]} 45... Rb2+ {[%clk
0:00:10.8]} 46. Kg3 {[%clk 0:00:06.2]} 46... a4 {[%clk 0:00:11]} 47. Ra6 {[%clk
0:00:05.8]} 47... Rb4 {[%clk 0:00:11.1]} 48. h4 {[%clk 0:00:04.9]} 48... Kf6
{[%clk 0:00:11.3]} 49. Ra7 {[%clk 0:00:04.1]} 49... Kg6 {[%clk 0:00:10.9]} 50.
h5+ {[%clk 0:00:03.9]} 50... Kxh5 {[%clk 0:00:10.9]} 51. Rxf7 {[%clk 0:00:04.1]}
51... Kg5 {[%clk 0:00:11]} 52. Ra7 {[%clk 0:00:03.7]} 52... Kf5 {[%clk
0:00:09.8]} 53. Ra5 {[%clk 0:00:03.3]} 53... Rd4 {[%clk 0:00:05.4]} 54. Ra8
{[%clk 0:00:02.6]} 54... Rd3 {[%clk 0:00:02.9]} 55. Rxa4 {[%clk 0:00:01.4]} 1-0

[Event "*** Titled Tuesday Blitz"]
[Site "Chess.com"]
[Date "2020.05.19"]
[Round "3"]
[White "lili_ani"]
[Black "hypert"]
[Result "1-0"]
[WhiteElo "2578"]
[BlackElo "2378"]
[TimeControl "180+1"]
[EndTime "12:29:48 PDT"]
[Termination "lili_ani won by resignation"]

1. d4 {[%clk 0:03:00.9]} 1... d5 {[%clk 0:02:59.3]} 2. c4 {[%clk 0:03:00]} 2...
e6 {[%clk 0:02:59.9]} 3. Nf3 {[%clk 0:02:55.1]} 3... c6 {[%clk 0:03:00.3]} 4. e3
{[%clk 0:02:53.4]} 4... Bd6 {[%clk 0:03:00]} 5. Bd3 {[%clk 0:02:48.4]} 5... f5
{[%clk 0:02:58.8]} 6. O-O {[%clk 0:02:45.4]} 6... Nf6 {[%clk 0:02:58.9]} 7. b3
{[%clk 0:02:45.5]} 7... Qe7 {[%clk 0:02:57.1]} 8. a4 {[%clk 0:02:44.9]} 8... b6
{[%clk 0:02:56.8]} 9. Ba3 {[%clk 0:02:42.4]} 9... c5 {[%clk 0:02:56.2]} 10. Nc3
{[%clk 0:02:34.4]} 10... O-O {[%clk 0:02:32.1]} 11. Nb5 {[%clk 0:02:31.1]} 11...
Nc6 {[%clk 0:02:27.4]} 12. cxd5 {[%clk 0:02:17.5]} 12... Nxd5 {[%clk 0:02:17.9]}
13. Nxd6 {[%clk 0:02:14.6]} 13... Qxd6 {[%clk 0:02:18.8]} 14. dxc5 {[%clk
0:02:14.6]} 14... bxc5 {[%clk 0:02:17.2]} 15. Rc1 {[%clk 0:01:59]} 15... Ncb4
{[%clk 0:02:17.2]} 16. e4 {[%clk 0:01:53.6]} 16... Nf4 {[%clk 0:01:48.3]} 17.
Bc4 {[%clk 0:01:04.7]} 17... Qxd1 {[%clk 0:01:46.7]} 18. Rfxd1 {[%clk 0:01:05]}
18... fxe4 {[%clk 0:01:47.2]} 19. Ng5 {[%clk 0:01:04.9]} 19... Nbd3 {[%clk
0:01:12.6]} 20. Rc2 {[%clk 0:01:04.8]} 20... Bb7 {[%clk 0:00:56.1]} 21. Nxe6
{[%clk 0:00:27.1]} 21... Nxe6 {[%clk 0:00:56]} 22. Bxe6+ {[%clk 0:00:28]} 22...
Kh8 {[%clk 0:00:56.6]} 23. Bc4 {[%clk 0:00:19.1]} 23... Rfd8 {[%clk 0:00:46.7]}
24. Rcd2 {[%clk 0:00:18.8]} 24... Rac8 {[%clk 0:00:31.9]} 25. f3 {[%clk
0:00:17.9]} 25... Rd4 {[%clk 0:00:19.1]} 26. fxe4 {[%clk 0:00:17.5]} 26... Ne5
{[%clk 0:00:16.9]} 27. Rxd4 {[%clk 0:00:13.6]} 27... cxd4 {[%clk 0:00:17.8]} 28.
Rxd4 {[%clk 0:00:13.9]} 28... h6 {[%clk 0:00:17.7]} 29. h3 {[%clk 0:00:13.6]}
29... Nxc4 {[%clk 0:00:16.8]} 30. bxc4 {[%clk 0:00:13.5]} 30... Re8 {[%clk
0:00:16.7]} 31. Rd7 {[%clk 0:00:12.7]} 31... Bxe4 {[%clk 0:00:17.2]} 32. Bb2
{[%clk 0:00:12.9]} 32... Rb8 {[%clk 0:00:14]} 33. Bxg7+ {[%clk 0:00:12.1]} 33...
Kg8 {[%clk 0:00:14.2]} 34. Be5 {[%clk 0:00:12.8]} 34... Rb1+ {[%clk 0:00:13.8]}
35. Kh2 {[%clk 0:00:12.7]} 35... Rc1 {[%clk 0:00:13]} 36. Rxa7 {[%clk
0:00:10.4]} 36... Rc2 {[%clk 0:00:12.2]} 37. Rg7+ {[%clk 0:00:09.6]} 37... Kf8
{[%clk 0:00:11.6]} 38. Rg4 {[%clk 0:00:10.2]} 38... Rxc4 {[%clk 0:00:06.3]} 39.
a5 {[%clk 0:00:09.9]} 39... Bd5 {[%clk 0:00:06.8]} 40. a6 {[%clk 0:00:08.1]}
40... Rxg4 {[%clk 0:00:05.7]} 41. hxg4 {[%clk 0:00:08.4]} 41... Kf7 {[%clk
0:00:06]} 42. Bf4 {[%clk 0:00:07.4]} 42... Kg6 {[%clk 0:00:06.4]} 43. a7 {[%clk
0:00:07.8]} 43... Ba8 {[%clk 0:00:05.9]} 44. g3 {[%clk 0:00:08]} 44... h5 {[%clk
0:00:06.5]} 45. gxh5+ {[%clk 0:00:07.7]} 45... Kxh5 {[%clk 0:00:07.4]} 46. Kh3
{[%clk 0:00:08.2]} 46... Kg6 {[%clk 0:00:07]} 47. g4 {[%clk 0:00:08.5]} 47...
Bb7 {[%clk 0:00:07.9]} 48. Kg3 {[%clk 0:00:08.6]} 48... Ba8 {[%clk 0:00:08.8]}
49. Be3 {[%clk 0:00:08.7]} 49... Bb7 {[%clk 0:00:09.7]} 50. Kf4 {[%clk
0:00:09.2]} 50... Kf6 {[%clk 0:00:09.4]} 51. g5+ {[%clk 0:00:08.9]} 51... Kg6
{[%clk 0:00:07.2]} 52. Ke5 {[%clk 0:00:09.2]} 52... Ba8 {[%clk 0:00:05.9]} 53.
Kd6 {[%clk 0:00:09.6]} 53... Kf5 {[%clk 0:00:02.5]} 54. Kc7 {[%clk 0:00:09.8]}
54... Ke6 {[%clk 0:00:02.6]} 55. Kb8 {[%clk 0:00:09.7]} 55... Kd7 {[%clk
0:00:03.1]} 56. Kxa8 {[%clk 0:00:09.5]} 56... Kc7 {[%clk 0:00:04]} 57. g6 {[%clk
0:00:09.9]} 1-0

[Event "*** Titled Tuesday Blitz"]
[Site "Chess.com"]
[Date "2020.05.19"]
[Round "3"]
[White "SketchyMoves"]
[Black "VojtechPlat"]
[Result "0-1"]
[WhiteElo "2620"]
[BlackElo "2893"]
[TimeControl "180+1"]
[EndTime "12:29:49 PDT"]
[Termination "VojtechPlat won by resignation"]

1. e4 {[%clk 0:03:00.9]} 1... d6 {[%clk 0:03:00.6]} 2. d4 {[%clk 0:03:00.6]}
2... Nf6 {[%clk 0:03:01.1]} 3. Nc3 {[%clk 0:03:00.9]} 3... e5 {[%clk 0:03:01.7]}
4. Nf3 {[%clk 0:02:57.1]} 4... Nbd7 {[%clk 0:03:01.8]} 5. Bc4 {[%clk 0:02:56.6]}
5... Be7 {[%clk 0:03:02.1]} 6. h3 {[%clk 0:02:55.5]} 6... O-O {[%clk 0:03:02.2]}
7. dxe5 {[%clk 0:02:54.4]} 7... dxe5 {[%clk 0:03:01.3]} 8. O-O {[%clk
0:02:53.5]} 8... c6 {[%clk 0:03:01.5]} 9. a4 {[%clk 0:02:52.2]} 9... a5 {[%clk
0:03:01.1]} 10. Qe2 {[%clk 0:02:50.2]} 10... Qc7 {[%clk 0:03:01.2]} 11. Bg5
{[%clk 0:02:43.1]} 11... Nc5 {[%clk 0:02:59.7]} 12. Rad1 {[%clk 0:02:38.7]}
12... Ne6 {[%clk 0:02:58.9]} 13. Bxe6 {[%clk 0:02:29.6]} 13... Bxe6 {[%clk
0:02:58.3]} 14. Nb1 {[%clk 0:02:25.2]} 14... Rfd8 {[%clk 0:02:57]} 15. b3 {[%clk
0:02:23.8]} 15... h6 {[%clk 0:02:48.8]} 16. Bh4 {[%clk 0:02:19.9]} 16... Nh5
{[%clk 0:02:15.9]} 17. Bxe7 {[%clk 0:02:14.7]} 17... Nf4 {[%clk 0:02:15.9]} 18.
Qe3 {[%clk 0:02:07]} 18... Qxe7 {[%clk 0:02:15.8]} 19. Kh2 {[%clk 0:01:36]}
19... Qf6 {[%clk 0:02:12.2]} 20. Rfe1 {[%clk 0:01:31]} 20... Qg6 {[%clk
0:01:57.3]} 21. Nh4 {[%clk 0:01:28.4]} 21... Qh5 {[%clk 0:01:54.4]} 22. Rxd8+
{[%clk 0:01:26.8]} 22... Rxd8 {[%clk 0:01:53.7]} 23. Qg3 {[%clk 0:01:15.8]}
23... Rd1 {[%clk 0:01:43.5]} 24. f3 {[%clk 0:00:54.5]} 24... Rxe1 {[%clk
0:01:21.2]} 25. Qxe1 {[%clk 0:00:55.4]} 25... Bxh3 {[%clk 0:01:20.6]} 26. g3
{[%clk 0:00:44.1]} 26... Be6 {[%clk 0:01:08.7]} 27. gxf4 {[%clk 0:00:40]} 27...
exf4 {[%clk 0:01:08.1]} 28. Kg1 {[%clk 0:00:29]} 28... g5 {[%clk 0:01:05.2]} 29.
Nf5 {[%clk 0:00:21.1]} 29... Qxf3 {[%clk 0:01:05]} 30. Nxh6+ {[%clk 0:00:13.9]}
30... Kh7 {[%clk 0:01:02.4]} 31. Nf5 {[%clk 0:00:14.3]} 31... Qg4+ {[%clk
0:00:49.8]} 32. Kf2 {[%clk 0:00:14.5]} 32... Bxf5 {[%clk 0:00:47.6]} 33. exf5
{[%clk 0:00:15.4]} 33... Qxf5 {[%clk 0:00:47.8]} 34. Qd1 {[%clk 0:00:13]} 34...
Qc5+ {[%clk 0:00:40.9]} 35. Kf3 {[%clk 0:00:12.7]} 35... Qe3+ {[%clk 0:00:40.1]}
36. Kg4 {[%clk 0:00:11]} 36... Qg3+ {[%clk 0:00:32.1]} 37. Kf5 {[%clk
0:00:10.8]} 37... f3 {[%clk 0:00:21.7]} 38. Kf6 {[%clk 0:00:04.3]} 38... Qf4+
{[%clk 0:00:20.6]} 39. Ke7 {[%clk 0:00:04.6]} 39... f2 {[%clk 0:00:20.7]} 40.
Nd2 {[%clk 0:00:04]} 40... g4 {[%clk 0:00:18.3]} 41. Nf1 {[%clk 0:00:03.6]}
41... Kg7 {[%clk 0:00:18]} 42. Qd3 {[%clk 0:00:03]} 42... Qe5+ {[%clk
0:00:17.2]} 43. Kd7 {[%clk 0:00:03]} 43... Qd5+ {[%clk 0:00:16.2]} 44. Qxd5
{[%clk 0:00:02]} 44... cxd5 {[%clk 0:00:16.4]} 45. Kd6 {[%clk 0:00:02.9]} 45...
f5 {[%clk 0:00:16.6]} 46. Kxd5 {[%clk 0:00:02.3]} 46... f4 {[%clk 0:00:16.9]}
47. Ke4 {[%clk 0:00:02.8]} 47... g3 {[%clk 0:00:17.3]} 48. Kf3 {[%clk
0:00:03.4]} 48... Kf6 {[%clk 0:00:17.5]} 49. c3 {[%clk 0:00:03.9]} 49... Ke5
{[%clk 0:00:17.6]} 50. b4 {[%clk 0:00:04.3]} 50... axb4 {[%clk 0:00:17.6]} 51.
cxb4 {[%clk 0:00:05.2]} 51... Kd4 {[%clk 0:00:17.8]} 52. b5 {[%clk 0:00:04.5]}
52... Kc5 {[%clk 0:00:17.9]} 53. Kg2 {[%clk 0:00:04.3]} 53... Kb4 {[%clk
0:00:17.8]} 54. Nd2 {[%clk 0:00:04.1]} 54... Kxa4 {[%clk 0:00:18]} 55. Nc4
{[%clk 0:00:03.4]} 55... Kxb5 {[%clk 0:00:17.9]} 56. Nd6+ {[%clk 0:00:03.2]}
56... Kc6 {[%clk 0:00:17.9]} 57. Ne4 {[%clk 0:00:03.8]} 57... b5 {[%clk
0:00:16]} 58. Ng5 {[%clk 0:00:03]} 58... b4 {[%clk 0:00:16]} 59. Ne6 {[%clk
0:00:03.5]} 59... Kd5 {[%clk 0:00:14.3]} 60. Nxf4+ {[%clk 0:00:03.5]} 60... Kc4
{[%clk 0:00:14.7]} 61. Ne2 {[%clk 0:00:02.3]} 61... b3 {[%clk 0:00:15.1]} 62.
Nxg3 {[%clk 0:00:02.7]} 62... b2 {[%clk 0:00:15]} 63. Ne4 {[%clk 0:00:03.3]}
63... f1=Q+ {[%clk 0:00:13.5]} 64. Kxf1 {[%clk 0:00:02.1]} 64... b1=Q+ {[%clk
0:00:13.6]} 65. Kf2 {[%clk 0:00:02.5]} 65... Qxe4 {[%clk 0:00:14.5]} 0-1

[Event "*** Titled Tuesday Blitz"]
[Site "Chess.com"]
[Date "2020.05.19"]
[Round "3"]
[White "Alliswell998"]
[Black "Lion-Al-Messi"]
[Result "0-1"]
[WhiteElo "2512"]
[BlackElo "2315"]
[TimeControl "180+1"]
[EndTime "12:29:49 PDT"]
[Termination "Lion-Al-Messi won by checkmate"]

1. e4 {[%clk 0:03:00.9]} 1... e6 {[%clk 0:02:59.6]} 2. d4 {[%clk 0:03:00.9]}
2... d5 {[%clk 0:02:59.7]} 3. Nc3 {[%clk 0:03:01.6]} 3... Nf6 {[%clk 0:02:55.7]}
4. Bg5 {[%clk 0:03:01]} 4... dxe4 {[%clk 0:02:54.1]} 5. Nxe4 {[%clk 0:03:00.8]}
5... Be7 {[%clk 0:02:54.4]} 6. Bxf6 {[%clk 0:03:00.6]} 6... gxf6 {[%clk
0:02:55.3]} 7. Nf3 {[%clk 0:03:00.8]} 7... f5 {[%clk 0:02:51.6]} 8. Nc3 {[%clk
0:03:00.9]} 8... a6 {[%clk 0:02:50.2]} 9. Qe2 {[%clk 0:03:01.3]} 9... b5 {[%clk
0:02:50.1]} 10. O-O-O {[%clk 0:03:01.6]} 10... b4 {[%clk 0:02:49.3]} 11. Na4
{[%clk 0:03:00.6]} 11... Qd5 {[%clk 0:02:49.4]} 12. c4 {[%clk 0:02:54.6]} 12...
bxc3 {[%clk 0:02:47]} 13. Nxc3 {[%clk 0:02:55]} 13... Qa5 {[%clk 0:02:45.8]} 14.
Ne5 {[%clk 0:02:43.3]} 14... Bb7 {[%clk 0:02:34.6]} 15. Qh5 {[%clk 0:02:34.8]}
15... O-O {[%clk 0:02:32.1]} 16. Rd3 {[%clk 0:02:26.5]} 16... f4 {[%clk
0:02:21.1]} 17. Rh3 {[%clk 0:02:20.4]} 17... Be4 {[%clk 0:02:17.3]} 18. Bc4
{[%clk 0:01:57.6]} 18... Bf5 {[%clk 0:02:07.5]} 19. Bd3 {[%clk 0:01:42]} 19...
Bxd3 {[%clk 0:01:51.5]} 20. Nxd3 {[%clk 0:01:32.2]} 20... Qxh5 {[%clk 0:01:48]}
21. Rxh5 {[%clk 0:01:33.1]} 21... Bd6 {[%clk 0:01:22.3]} 22. Ne4 {[%clk
0:01:26.4]} 22... Nd7 {[%clk 0:01:20.7]} 23. Nxd6 {[%clk 0:01:19.4]} 23... cxd6
{[%clk 0:01:21.6]} 24. Nxf4 {[%clk 0:01:19]} 24... Nf6 {[%clk 0:01:21.2]} 25.
Ra5 {[%clk 0:01:10.6]} 25... Rfc8+ {[%clk 0:01:20.4]} 26. Kb1 {[%clk 0:01:09.5]}
26... Ne4 {[%clk 0:01:20.1]} 27. f3 {[%clk 0:01:06.9]} 27... Nd2+ {[%clk
0:01:19.5]} 28. Ka1 {[%clk 0:01:06]} 28... Rc4 {[%clk 0:01:17.1]} 29. Ne2 {[%clk
0:00:59.7]} 29... Rc2 {[%clk 0:01:07.7]} 30. Ra3 {[%clk 0:00:52.8]} 30... Rb8
{[%clk 0:01:01.2]} 31. b3 {[%clk 0:00:45.6]} 31... Nxb3+ {[%clk 0:00:47.1]} 32.
Rxb3 {[%clk 0:00:37.4]} 32... Rxb3 {[%clk 0:00:46.1]} 33. axb3 {[%clk
0:00:38.3]} 33... Rxe2 {[%clk 0:00:46.7]} 34. g3 {[%clk 0:00:27.2]} 34... Kg7
{[%clk 0:00:41.3]} 35. b4 {[%clk 0:00:23.8]} 35... Rd2 {[%clk 0:00:39.6]} 36.
Rc1 {[%clk 0:00:20.7]} 36... Rxd4 {[%clk 0:00:38.8]} 37. Rc6 {[%clk 0:00:21.4]}
37... d5 {[%clk 0:00:36.7]} 38. Rb6 {[%clk 0:00:15.9]} 38... a5 {[%clk 0:00:31]}
39. b5 {[%clk 0:00:14.8]} 39... Rb4 {[%clk 0:00:29.9]} 40. Ka2 {[%clk
0:00:13.9]} 40... d4 {[%clk 0:00:27.3]} 41. Rb8 {[%clk 0:00:13.2]} 41... d3
{[%clk 0:00:26]} 42. Rd8 {[%clk 0:00:11.3]} 42... Rxb5 {[%clk 0:00:26]} 43. Rxd3
{[%clk 0:00:11.8]} 43... Rd5 {[%clk 0:00:24]} 44. Re3 {[%clk 0:00:11.3]} 44...
Rd2+ {[%clk 0:00:23.3]} 45. Kb3 {[%clk 0:00:11]} 45... Rxh2 {[%clk 0:00:24.2]}
46. Kc4 {[%clk 0:00:11]} 46... Rb2 {[%clk 0:00:23.6]} 47. Kd4 {[%clk 0:00:09.2]}
47... Rb5 {[%clk 0:00:22.8]} 48. Rc3 {[%clk 0:00:08.1]} 48... a4 {[%clk
0:00:22.5]} 49. Rc8 {[%clk 0:00:07.9]} 49... Ra5 {[%clk 0:00:22]} 50. Rc2 {[%clk
0:00:07.7]} 50... a3 {[%clk 0:00:22.1]} 51. Ra2 {[%clk 0:00:08.6]} 51... Kf6
{[%clk 0:00:21.9]} 52. Ke4 {[%clk 0:00:09.5]} 52... Ra4+ {[%clk 0:00:21.4]} 53.
Ke3 {[%clk 0:00:09.8]} 53... h5 {[%clk 0:00:21.4]} 54. Kf2 {[%clk 0:00:09.9]}
54... Kg5 {[%clk 0:00:20.7]} 55. Kg2 {[%clk 0:00:10.1]} 55... f5 {[%clk
0:00:20.4]} 56. Kh3 {[%clk 0:00:10]} 56... e5 {[%clk 0:00:20.1]} 57. Kg2 {[%clk
0:00:10.3]} 57... e4 {[%clk 0:00:20.3]} 58. Kf2 {[%clk 0:00:10.1]} 58... exf3
{[%clk 0:00:16.2]} 59. Kxf3 {[%clk 0:00:11]} 59... Ra5 {[%clk 0:00:14]} 60. Kg2
{[%clk 0:00:10.9]} 60... Kg4 {[%clk 0:00:13.9]} 61. Kh2 {[%clk 0:00:11.5]} 61...
h4 {[%clk 0:00:13.1]} 62. gxh4 {[%clk 0:00:11.2]} 62... Kxh4 {[%clk 0:00:14]}
63. Kg2 {[%clk 0:00:12.1]} 63... Kg4 {[%clk 0:00:13.9]} 64. Kf2 {[%clk
0:00:12.5]} 64... f4 {[%clk 0:00:14.2]} 65. Kg2 {[%clk 0:00:13.1]} 65... f3+
{[%clk 0:00:14.3]} 66. Kf2 {[%clk 0:00:14]} 66... Kf4 {[%clk 0:00:14.6]} 67. Kf1
{[%clk 0:00:13.9]} 67... Kg3 {[%clk 0:00:14.7]} 68. Kg1 {[%clk 0:00:13.5]} 68...
Rb5 {[%clk 0:00:14.5]} 69. Kf1 {[%clk 0:00:14.4]} 69... Rb1# {[%clk 0:00:14.3]}
0-1